fUSD/lending_fUSD_20251225
["ID","MTS","AMOUNT","RATE_DAILY","PERIOD"]
[399734665,1766642921382,-10000.01,0.0001141,2]
[399734666,1766642921472,689.0,0.0003287,120]
[399734667,1766642921504,-10000.01,0.0001141,2]
[399734668,1766642921615,-10000.01,0.0001141,2]
[399734669,1766642921817,-10000.01,0.0001141,2]
[399734670,1766642927414,10000.0,0.00032877,120]
[399734671,1766642934148,10000.0,0.00032877,120]
[399734672,1766642940163,10000.0,0.00032877,120]
[399734673,1766642947056,10000.0,0.00032877,120]
[399734674,1766642953259,10000.0,0.00032877,120]
[399734675,1766642959056,-300.0,0.00011309,2]
[399734676,1766642959088,-150.0,0.00011309,2]
[399734677,1766642959144,-9100.01,0.0001131,2]
[399734678,1766642959251,-10000.01,0.0001131,2]
[399734679,1766642959411,-10000.01,0.0001131,2]
[399734680,1766642962946,-10000.01,0.0001131,2]
[399734681,1766642969568,525.9,0.00032877,120]
[399734682,1766642979088,-172.93820612,0.00011309,2]
[399734683,1766642979136,-9654.13358776,0.0001131,2]
[399734684,1766642982110,205.0,0.0003287,120]
[399734685,1766642985254,-672.96104173,0.00011299,2]
[399734686,1766642985307,-8654.08791654,0.0001131,2]
[399734687,1766643022618,-177.37145397,0.000113,2]
[399734692,1766643032420,-146.28913027,0.000113,2]
[399734694,1766643032431,-1200.0,0.00011308,2]
[399734696,1766643032442,-243.0,0.00011308,2]
[399734697,1766643032452,-300.0,0.00011308,2]
[399734698,1766643032462,-9647.99386434,0.00011309,2]
[399734699,1766643032471,-300.0,0.00011309,2]
[399734700,1766643032482,-507.55870685,0.00011309,2]
[399734701,1766643032492,-351.89245277,0.00011309,2]
[399734702,1766643032503,-114543.21071273,0.0001131,2]
[399734703,1766643032515,-70432.17131532,0.0001131,2]
[399734704,1766643032527,-35792.56887092,0.0001131,2]
[399734705,1766643032539,-2205.88592063,0.0001131,2]
[399734706,1766643032551,-4340.0,0.0001131,2]
[399734707,1766643032579,-462.29407284,0.0001131,2]
[399734708,1766643032603,-5456.13786566,0.0001131,2]
[399734709,1766643032619,-6175.07128989,0.0001131,2]
[399734710,1766643032631,-35259.35020731,0.0001131,2]
[399734711,1766643032675,-6042.83991195,0.0001131,2]
[399734712,1766643032700,-815.86407937,0.0001131,2]
[399734713,1766643032714,-877.5,0.0001131,2]
[399734714,1766643032726,-4094.14085086,0.0001131,2]
[399734715,1766643032738,-1188.0,0.0001131,2]
[399734716,1766643032750,-763.04969767,0.0001131,2]
[399734717,1766643032762,-503.95767699,0.0001131,2]
[399734719,1766643038252,-500.0,0.00011309,2]
[399734720,1766643038263,-500.0,0.00011309,2]
[399734721,1766643038273,-643.92265928,0.00011309,2]
[399734722,1766643038286,-568.56486964,0.00011309,2]
[399734723,1766643038296,-500.0,0.00011309,2]
[399734724,1766643038307,-568.56486964,0.00011309,2]
[399734725,1766643038318,-568.56486964,0.00011309,2]
[399734726,1766643038328,-568.56486964,0.00011309,2]
[399734727,1766643038338,-568.56486964,0.00011309,2]
[399734728,1766643038348,-568.56486964,0.00011309,2]
[399734729,1766643038360,-568.56486964,0.00011309,2]
[399734730,1766643038370,-568.56486964,0.00011309,2]
[399734731,1766643038380,-568.56486964,0.00011309,2]
[399734732,1766643038391,-568.56486964,0.00011309,2]
[399734733,1766643038401,-130.42864432,0.00011309,2]
[399734734,1766643038414,-438.13622532,0.00011309,2]
[399734735,1766643038424,-419.61928677,0.00011309,2]
[399734736,1766643038436,-148.94558287,0.00011309,2]
[399734737,1766643038446,-149.85841711,0.00011309,2]
[399734738,1766643038479,-418.70645253,0.00011309,2]
[399734739,1766643038489,-500.0,0.00011309,2]
[399734740,1766643038499,-568.56486964,0.00011309,2]
[399734741,1766643038509,-568.56486964,0.00011309,2]
[399734742,1766643038519,-568.56486964,0.00011309,2]
[399734743,1766643038529,-568.56486964,0.00011309,2]
[399734745,1766643038539,-568.56486964,0.00011309,2]
[399734746,1766643038549,-568.56486964,0.00011309,2]
[399734747,1766643038559,-568.56486964,0.00011309,2]
[399734748,1766643038569,-568.56486964,0.00011309,2]
[399734749,1766643038951,-568.56486964,0.00011309,2]
[399734750,1766643038963,-568.56486964,0.00011309,2]
[399734751,1766643038973,-568.56486964,0.00011309,2]
[399734752,1766643038983,-568.56486964,0.00011309,2]
[399734753,1766643038993,-568.56486964,0.00011309,2]
[399734754,1766643039003,-568.56486964,0.00011309,2]
[399734755,1766643039014,-568.56486964,0.00011309,2]
[399734756,1766643039023,-568.56486964,0.00011309,2]
[399734757,1766643039033,-568.56486964,0.00011309,2]
[399734758,1766643039043,-568.56486964,0.00011309,2]
[399734759,1766643039053,-568.56486964,0.00011309,2]
[399734760,1766643039063,-568.56486964,0.00011309,2]
[399734761,1766643039074,-568.56486964,0.00011309,2]
[399734762,1766643039084,-568.56486964,0.00011309,2]
[399734763,1766643039095,-568.56486964,0.00011309,2]
[399734764,1766643039105,-568.56486964,0.00011309,2]
[399734765,1766643039115,-568.56486964,0.00011309,2]
[399734766,1766643039125,-568.56486964,0.00011309,2]
[399734767,1766643039135,-568.56486964,0.00011309,2]
[399734768,1766643039146,-568.56486964,0.00011309,2]
[399734769,1766643039156,-568.56486964,0.00011309,2]
[399734770,1766643039166,-568.56486964,0.00011309,2]
[399734771,1766643039177,-568.56486964,0.00011309,2]
[399734772,1766643039187,-568.56486964,0.00011309,2]
[399734773,1766643039197,-568.56486964,0.00011309,2]
[399734774,1766643039208,-568.56486964,0.00011309,2]
[399734775,1766643039217,-236361.60949285,0.0001131,2]
[399734776,1766643039230,-15692.40607795,0.0001131,2]
[399734777,1766643040446,-601.15971342,0.0001131,2]
[399734779,1766643041796,-1.7e-07,0.0001131,2]
[399734780,1766643041819,-374933.0620439,0.0001131,2]
[399734793,1766643043580,-969.04,0.0001131,2]
[399734794,1766643043692,-358.55980029,0.0001131,2]
[399734796,1766643046334,-2505.35903128,0.0001131,2]
[399734797,1766643046350,-1585.57444177,0.0001131,2]
[399734815,1766643197304,160.81140958,0.000328,120]
[399734816,1766643215130,169.62,0.0001,10]
[399734817,1766643219332,306.81,0.000134,5]
[399734818,1766643230389,224.41947278,0.000328,120]
[399734819,1766643269854,-205.0,0.00011308,2]
[399734820,1766643269886,-355.29109479,0.00011309,2]
[399734821,1766643269923,-500.0,0.00011309,2]
[399734822,1766643269959,-500.0,0.00011309,2]
[399734823,1766643269996,-500.0,0.00011309,2]
[399734824,1766643270032,-500.0,0.00011309,2]
[399734825,1766643270067,-500.0,0.00011309,2]
[399734826,1766643270103,-500.0,0.00011309,2]
[399734827,1766643270139,-500.0,0.00011309,2]
[399734828,1766643270174,-500.0,0.00011309,2]
[399734829,1766643270212,-379.42781042,0.00011309,2]
[399734830,1766643270226,-120.57218958,0.00011309,2]
[399734831,1766643270236,-84.42781042,0.00011309,2]
[399734832,1766643270251,-355.29109479,0.00011309,2]
[399734833,1766643270263,-60.28109479,0.00011309,2]
[399734834,1766643270274,-439.71890521,0.00011309,2]
[399734835,1766643270291,-60.28109479,0.00011309,2]
[399734836,1766643270302,-439.71890521,0.00011309,2]
[399734837,1766643270322,-60.28109479,0.00011309,2]
[399734838,1766643270332,-439.71890521,0.00011309,2]
[399734839,1766643270351,-60.28109479,0.00011309,2]
[399734840,1766643270361,-439.71890521,0.00011309,2]
[399734841,1766643270402,-60.28109479,0.00011309,2]
[399734842,1766643270438,-500.0,0.00011309,2]
[399734843,1766643270473,-500.0,0.00011309,2]
[399734844,1766643270507,-500.0,0.00011309,2]
[399734845,1766643270546,-500.0,0.00011309,2]
[399734846,1766643270580,-500.0,0.00011309,2]
[399734847,1766643270616,-500.0,0.00011309,2]
[399734848,1766643270650,-500.0,0.00011309,2]
[399734849,1766643270683,-500.0,0.00011309,2]
[399734850,1766643270716,-500.0,0.00011309,2]
[399734851,1766643270750,-379.44781042,0.00011309,2]
[399734852,1766643270763,-120.55218958,0.00011309,2]
[399734853,1766643270772,-379.44781042,0.00011309,2]
[399734854,1766643270783,-120.55218958,0.00011309,2]
[399734855,1766643270793,-379.44781042,0.00011309,2]
[399734856,1766643270805,-120.55218958,0.00011309,2]
[399734857,1766643270815,-379.44781042,0.00011309,2]
[399734858,1766643270859,-120.55218958,0.00011309,2]
[399734859,1766643270893,-500.0,0.00011309,2]
[399734860,1766643270927,-500.0,0.00011309,2]
[399734861,1766643270961,-500.0,0.00011309,2]
[399734862,1766643270999,-500.0,0.00011309,2]
[399734863,1766643271037,-500.0,0.00011309,2]
[399734864,1766643271076,-500.0,0.00011309,2]
[399734865,1766643271115,-500.0,0.00011309,2]
[399734866,1766643271153,-500.96654262,0.00011309,2]
[399734867,1766643271193,-500.0,0.00011309,2]
[399734868,1766643271233,-256.9725356,0.00011309,2]
[399734869,1766643271247,-243.0274644,0.00011309,2]
[399734870,1766643271258,-256.9725356,0.00011309,2]
[399734871,1766643271275,-243.0274644,0.00011309,2]
[399734872,1766643271286,-256.9725356,0.00011309,2]
[399734873,1766643271338,-243.0274644,0.00011309,2]
[399734874,1766643271376,-500.0,0.00011309,2]
[399734875,1766643271413,-500.0,0.00011309,2]
[399734876,1766643271453,-500.0,0.00011309,2]
[399734877,1766643271491,-500.0,0.00011309,2]
[399734878,1766643271531,-500.0,0.00011309,2]
[399734879,1766643271570,-500.0,0.00011309,2]
[399734880,1766643271607,-500.0,0.00011309,2]
[399734881,1766643271643,-500.0,0.00011309,2]
[399734882,1766643271678,-500.0,0.00011309,2]
[399734883,1766643271714,-13.9550712,0.00011309,2]
[399734884,1766643271737,-60.28109479,0.00011309,2]
[399734885,1766643271777,-425.76383401,0.00011309,2]
[399734886,1766643271810,-246.32471694,0.00011309,2]
[399734887,1766643271847,-500.0,0.00011309,2]
[399734888,1766643271886,-500.0,0.00011309,2]
[399734889,1766643271924,-500.0,0.00011309,2]
[399734890,1766643271963,-500.0,0.00011309,2]
[399734891,1766643272001,-500.0,0.00011309,2]
[399734892,1766643272041,-500.0,0.00011309,2]
[399734893,1766643272078,-199.99999999,0.00011309,2]
[399734894,1766643272116,-500.0,0.00011309,2]
[399734895,1766643272152,-500.0,0.00011309,2]
[399734896,1766643272173,-500.0,0.00011309,2]
[399734897,1766643272185,-500.0,0.00011309,2]
[399734898,1766643272201,-500.0,0.00011309,2]
[399734899,1766643272217,-500.0,0.00011309,2]
[399734900,1766643272229,-500.0,0.00011309,2]
[399734901,1766643272280,-500.0,0.00011309,2]
[399734902,1766643272317,-500.0,0.00011309,2]
[399734903,1766643272353,-500.0,0.00011309,2]
[399734904,1766643272389,-500.0,0.00011309,2]
[399734905,1766643272425,-500.0,0.00011309,2]
[399734906,1766643272462,-500.0,0.00011309,2]
[399734907,1766643272685,-500.0,0.00011309,2]
[399734908,1766643272722,-500.0,0.00011309,2]
[399734909,1766643272755,-500.0,0.00011309,2]
[399734910,1766643272788,-500.0,0.00011309,2]
[399734911,1766643272807,-500.0,0.00011309,2]
[399734912,1766643272818,-500.0,0.00011309,2]
[399734913,1766643272830,-500.0,0.00011309,2]
[399734914,1766643272842,-500.0,0.00011309,2]
[399734915,1766643272880,-500.0,0.00011309,2]
[399734916,1766643272910,-500.0,0.00011309,2]
[399734917,1766643272940,-548.60920664,0.00011309,2]
[399734918,1766643272970,-500.0,0.00011309,2]
[399734919,1766643273000,-500.0,0.00011309,2]
[399734920,1766643273031,-359.44473184,0.00011309,2]
[399734921,1766643273068,-500.0,0.00011309,2]
[399734922,1766643273103,-500.0,0.00011309,2]
[399734923,1766643273139,-500.0,0.00011309,2]
[399734924,1766643273175,-300.0,0.00011309,2]
[399734925,1766643273212,-83.90212304,0.00011309,2]
[399734926,1766643273226,-416.09787696,0.00011309,2]
[399734927,1766643273235,-83.90212304,0.00011309,2]
[399734928,1766643273254,-120.55218958,0.00011309,2]
[399734929,1766643273297,-295.54568738,0.00011309,2]
[399734930,1766643273328,-500.0,0.00011309,2]
[399734931,1766643273358,-500.0,0.00011309,2]
[399734932,1766643273389,-166.3749426,0.00011309,2]
[399734933,1766643273424,-500.0,0.00011309,2]
[399734934,1766643273453,-170.30114927,0.00011309,2]
[399734935,1766643273481,-250.0,0.0001131,2]
[399734936,1766643273501,-500.0,0.0001131,2]
[399734937,1766643273524,-500.0,0.0001131,2]
[399734938,1766643273539,-500.0,0.0001131,2]
[399734939,1766643273549,-500.0,0.0001131,2]
[399734940,1766643273561,-500.0,0.0001131,2]
[399734941,1766643273572,-500.0,0.0001131,2]
[399734942,1766643273593,-500.0,0.0001131,2]
[399734943,1766643273604,-500.96654262,0.0001131,2]
[399734944,1766643273619,-500.0,0.0001131,2]
[399734945,1766643273633,-500.0,0.0001131,2]
[399734946,1766643273651,-243.0274644,0.0001131,2]
[399734947,1766643273663,-500.0,0.0001131,2]
[399734948,1766643273673,-500.0,0.0001131,2]
[399734949,1766643273684,-500.0,0.0001131,2]
[399734950,1766643273699,-500.0,0.0001131,2]
[399734951,1766643273713,-500.0,0.0001131,2]
[399734952,1766643273728,-500.0,0.0001131,2]
[399734953,1766643273739,-500.0,0.0001131,2]
[399734954,1766643273749,-500.0,0.0001131,2]
[399734955,1766643273767,-500.0,0.0001131,2]
[399734956,1766643273778,-500.0,0.0001131,2]
[399734957,1766643273788,-425.76383401,0.0001131,2]
[399734958,1766643273807,-246.32471694,0.0001131,2]
[399734959,1766643273822,-500.0,0.0001131,2]
[399734960,1766643273833,-500.0,0.0001131,2]
[399734961,1766643273848,-500.0,0.0001131,2]
[399734962,1766643273871,-500.0,0.0001131,2]
[399734963,1766643273904,-622.49656919,0.0001131,2]
[399734964,1766643273916,-500.0,0.0001131,2]
[399734965,1766643273927,-500.0,0.0001131,2]
[399734966,1766643273938,-199.99999999,0.0001131,2]
[399734967,1766643273955,-500.0,0.0001131,2]
[399734968,1766643273971,-500.0,0.0001131,2]
[399734969,1766643273982,-255.83289812,0.0001131,2]
[399734970,1766643274005,-500.0,0.0001131,2]
[399734971,1766643274017,-500.0,0.0001131,2]
[399734972,1766643274028,-500.0,0.0001131,2]
[399734973,1766643274040,-500.0,0.0001131,2]
[399734974,1766643274058,-500.0,0.0001131,2]
[399734975,1766643274069,-500.0,0.0001131,2]
[399734976,1766643274085,-500.0,0.0001131,2]
[399734977,1766643274103,-500.0,0.0001131,2]
[399734978,1766643274114,-500.0,0.0001131,2]
[399734979,1766643274130,-138.51339666,0.0001131,2]
[399734980,1766643276181,-228.57726909,0.00011409,2]
[399734981,1766643279684,-182.57397268,0.00011409,2]
[399734982,1766643282293,-164.42133943,0.00011409,2]
[399734983,1766643284779,-263.72438278,0.00011409,2]
[399734984,1766643287427,-163.58398172,0.00011409,2]
[399734985,1766643287452,-56.04969666,0.0001141,2]
[399734986,1766643289079,-94.95030334,0.0001141,2]
[399734987,1766643289104,-107.24999201,0.0001141,2]
[399734989,1766643308180,500.0,0.00011309,2]
[399734990,1766643308248,500.0,0.00011309,2]
[399734991,1766643315476,500.0,0.00011308,2]
[399734992,1766643315567,500.09665427,0.00011308,2]
[399734993,1766643315642,500.0,0.00011308,2]
[399734994,1766643315717,500.0,0.00011308,2]
[399734995,1766643315811,500.0,0.00011308,2]
[399734996,1766643315862,500.0,0.00011308,2]
[399734997,1766643315916,500.0,0.00011308,2]
[399734998,1766643315992,500.0,0.00011308,2]
[399734999,1766643316042,500.0,0.00011308,2]
[399735000,1766643316099,500.0,0.00011308,2]
[399735001,1766643316152,500.0,0.00011308,2]
[399735002,1766643334361,-178.92659946,0.00011402,2]
[399735003,1766643380508,9642.15680108,0.0001121,2]
[399735004,1766643380542,10000.01,0.0001121,2]
[399735005,1766643380577,10000.01,0.0001121,2]
[399735006,1766643380610,10000.01,0.0001121,2]
[399735007,1766643380642,10000.01,0.0001121,2]
[399735008,1766643380674,10000.01,0.0001121,2]
[399735009,1766643380706,10000.01,0.0001121,2]
[399735010,1766643380739,10000.01,0.0001121,2]
[399735011,1766643380771,10000.01,0.0001121,2]
[399735012,1766643380807,10000.01,0.0001121,2]
[399735013,1766643381284,-192.91252436,0.0001121,2]
[399735014,1766643393072,-7322.69193966,0.0001121,2]
[399735015,1766643393178,-10000.01,0.0001121,2]
[399735016,1766643393569,-10000.01,0.0001121,2]
[399735017,1766643393586,-10000.01,0.0001121,2]
[399735018,1766643393613,-10000.01,0.0001121,2]
[399735019,1766643393653,-10000.01,0.0001121,2]
[399735020,1766643398642,-10000.01,0.0001121,2]
[399735021,1766643398764,-10000.01,0.0001121,2]
[399735023,1766643404789,-10000.01,0.0001121,2]
[399735024,1766643405020,-10000.01,0.0001121,2]
[399735025,1766643433319,206.74,0.000328,120]
[399735034,1766643454632,153.89,0.000142,5]
[399735035,1766643473080,-150.0,0.000107,2]
[399735036,1766643473112,-150.0,0.000107,2]
[399735037,1766643473149,-150.0,0.000112,2]
[399735038,1766643473182,-150.0,0.000112,2]
[399735039,1766643473280,-8800.01,0.0001121,2]
[399735040,1766643473313,-10000.01,0.0001121,2]
[399735041,1766643473400,-10000.01,0.0001121,2]
[399735042,1766643473498,-10000.01,0.0001121,2]
[399735043,1766643473640,-10000.01,0.0001121,2]
[399735044,1766643473767,-10000.01,0.0001121,2]
[399735045,1766643473879,-10000.01,0.0001121,2]
[399735046,1766643474008,-10000.01,0.0001121,2]
[399735047,1766643474138,-10000.01,0.0001121,2]
[399735048,1766643484657,-300.0,0.00011209,2]
[399735049,1766643484692,-150.0,0.00011209,2]
[399735050,1766643484755,-9100.01,0.0001121,2]
[399735051,1766643484782,-10000.01,0.0001121,2]
[399735052,1766643484849,-10000.01,0.0001121,2]
[399735053,1766643484976,-10000.01,0.0001121,2]
[399735054,1766643485083,-10000.01,0.0001121,2]
[399735055,1766643485216,-10000.01,0.0001121,2]
[399735057,1766643486931,-316.60076883,0.00011209,2]
[399735058,1766643486962,-472.27290645,0.00011209,2]
[399735059,1766643487023,-8422.26264944,0.0001121,2]
[399735060,1766643487050,-10000.01,0.0001121,2]
[399735061,1766643487219,-10000.01,0.0001121,2]
[399735062,1766643510683,160.81140957,0.000328,120]
[399735064,1766643546028,179.53557823,0.000328,120]
[399735065,1766643591368,1540.7,5.958e-05,2]
[399735066,1766643591556,1540.7,6.272e-05,2]
[399735067,1766643591757,164.19359329,6.585e-05,2]
[399735068,1766643591787,1376.50640671,6.585e-05,2]
[399735069,1766643591949,1540.7,6.899e-05,2]
[399735070,1766643592147,1540.7,7.212e-05,2]
[399735071,1766643592345,1540.7,7.526e-05,2]
[399735072,1766643592544,1540.7,7.84e-05,2]
[399735073,1766643592735,1540.7,8.153e-05,2]
[399735074,1766643592928,1540.7,8.467e-05,2]
[399735075,1766643593143,1540.7,8.78e-05,2]
[399735076,1766643593346,1540.7,9.094e-05,2]
[399735077,1766643593547,1540.7,9.408e-05,2]
[399735078,1766643593736,1540.7,9.721e-05,2]
[399735079,1766643607089,-439.54473917,0.00010035,2]
[399735080,1766643608076,999.0,0.00011469,3]
[399735081,1766643609123,-174.52929301,0.00010035,2]
[399735082,1766643610603,-404.53070699,0.00010035,2]
[399735083,1766643613713,-305.98935372,0.00010035,2]
[399735084,1766643616467,-216.10590711,0.00010035,2]
[399735085,1766643616492,-170.08372289,0.00010035,2]
[399735086,1766643621198,-61.91627711,0.00010035,2]
[399735087,1766643621223,-95.63430723,0.00010348,2]
[399735088,1766643625085,-210.35290903,0.00010348,2]
[399735089,1766643629540,-344.67662293,0.00010348,2]
[399735090,1766643633318,-260.8054223,0.00010348,2]
[399735091,1766643637724,-295.91814767,0.00010348,2]
[399735092,1766643639672,-189.02492322,0.00010348,2]
[399735093,1766643642172,-144.28766762,0.00010348,2]
[399735094,1766643642195,-178.92659946,0.00010562,2]
[399735095,1766643642219,-39.41425853,0.00010662,2]
[399735096,1766643645406,-376.19175239,0.00010662,2]
[399735097,1766643649711,-352.18656946,0.00010662,2]
[399735098,1766643654019,-273.52029713,0.00010662,2]
[399735099,1766643656380,-163.09225423,0.00010662,2]
[399735100,1766643661500,-251.1868518,0.00010662,2]
[399735101,1766643663034,-85.10801646,0.00010662,2]
[399735102,1766643663060,-204.70938887,0.00010976,2]
[399735103,1766643664456,-302.32144684,0.00010976,2]
[399735104,1766643665967,-353.94830561,0.00010976,2]
[399735105,1766643669902,-221.90119514,0.00010976,2]
[399735106,1766643676126,305.55,0.00032877,120]
[399735107,1766643709944,152.78,0.00032877,120]
[399735112,1766643755249,152.77,0.00032877,120]
[399735117,1766643779792,1000.0,0.0003286,120]
[399735118,1766643790361,1000.0,0.0003286,120]
[399735119,1766643802012,-162.74,0.00010709,2]
[399735120,1766643802037,-9.42,0.00010959,2]
[399735122,1766643815830,1000.0,0.0003286,120]
[399735123,1766643823065,160.81140958,0.000328,120]
[399735124,1766643830454,1000.0,0.0003286,120]
[399735126,1766643834692,1000.0,0.0003287,120]
[399735127,1766643840611,1000.0,0.0003286,120]
[399735128,1766643845942,1000.0,0.0003286,120]
[399735129,1766643856930,1000.0,0.0003286,120]
[399735131,1766643861384,179.53557823,0.000328,120]
[399735133,1766643878171,1000.0,0.0003286,120]
[399735134,1766643907225,-209.741393,0.00010619,2]
[399735135,1766643909831,-230.18345015,0.00010619,2]
[399735136,1766643911261,-225.1284924,0.00010619,2]
[399735137,1766643912770,-291.98325027,0.00010619,2]
[399735138,1766643918212,-266.95326472,0.00010619,2]
[399735139,1766643921482,-494.74064293,0.00010619,2]
[399735140,1766643930500,1000.0,0.0003286,120]
[399735142,1766643933366,300.15582378,0.00023,120]
[399735143,1766643936977,-165.58825374,0.00010565,2]
[399735144,1766643946827,1000.0,0.0003286,120]
[399735146,1766643959322,1000.0,0.0003287,120]
[399735147,1766643967075,1000.0,0.0003287,120]
[399735148,1766643973072,1000.0,0.0003287,120]
[399735149,1766643977784,1000.0,0.0003287,120]
[399735150,1766643986708,1000.0,0.0003287,120]
[399735167,1766644024884,1000.0,0.0003287,120]
[399735168,1766644030868,1000.0,0.0003287,120]
[399735169,1766644035731,1000.0,0.0003287,120]
[399735170,1766644042105,1000.0,0.0003287,120]
[399735171,1766644048428,5000.0,0.00032877,120]
[399735173,1766644052059,1000.0,0.0003287,120]
[399735174,1766644055965,10000.0,0.00032877,120]
[399735175,1766644056449,1000.0,0.0003287,120]
[399735176,1766644056976,-487.89217036,0.00010446,2]
[399735177,1766644060259,-334.41174626,0.00010446,2]
[399735179,1766644062353,-177.69608338,0.00010446,2]
[399735180,1766644062378,-44.15313926,0.00010565,2]
[399735181,1766644062402,-138.30465821,0.00010592,2]
[399735182,1766644064108,1000.0,0.0003287,120]
[399735183,1766644065139,-113.53088702,0.00010592,2]
[399735184,1766644065164,-61.35079143,0.00010619,2]
[399735188,1766644076517,384.58207657,0.000202,30]
[399735192,1766644080153,1000.0,0.0003287,120]
[399735193,1766644084522,1000.0,0.0003287,120]
[399735195,1766644089362,1000.0,0.0003287,120]
[399735196,1766644101195,1000.0,0.0003287,120]
[399735197,1766644105192,1000.0,0.0003287,120]
[399735198,1766644109350,1000.0,0.0003287,120]
[399735200,1766644113549,1000.0,0.0003287,120]
[399735204,1766644118226,18518.42947932,0.0001,2]
[399735212,1766644125470,1000.0,0.0003287,120]
[399735213,1766644129999,1000.0,0.0003287,120]
[399735214,1766644134411,1000.0,0.0003287,120]
[399735215,1766644143151,1000.0,0.0003287,120]
[399735216,1766644150168,1000.0,0.0003287,120]
[399735217,1766644160598,1000.0,0.0003287,120]
[399735218,1766644168696,1000.0,0.0003287,120]
[399735219,1766644175345,179.53557823,0.000328,120]
[399735220,1766644185061,1000.0,0.0003287,120]
[399735222,1766644192051,-479.88703614,0.00010565,2]
[399735223,1766644194182,-186.28556368,0.00010565,2]
[399735224,1766644196923,-279.92612007,0.00010565,2]
[399735225,1766644199699,-208.48179988,0.00010565,2]
[399735226,1766644201868,-195.30081263,0.00010565,2]
[399735227,1766644204423,1000.0,0.0003287,120]
[399735228,1766644206980,-237.0,0.00010565,2]
[399735229,1766644207005,-4.46671748,0.00010565,2]
[399735230,1766644208944,-248.81349029,0.00010565,2]
[399735231,1766644210723,1000.0,0.0003287,120]
[399735232,1766644211870,-171.14716267,0.00010565,2]
[399735233,1766644213431,-173.98420348,0.00010565,2]
[399735234,1766644214753,106384.31,0.00032877,120]
[399735235,1766644215496,-329.1022402,0.00010565,2]
[399735236,1766644218590,1000.0,0.0003287,120]
[399735237,1766644220069,-206.18976485,0.00010565,2]
[399735238,1766644222937,1000.0,0.0003287,120]
[399735239,1766644223731,-278.54693503,0.00010463,2]
[399735240,1766644227143,-320.21220242,0.00010463,2]
[399735241,1766644229367,-174.81199944,0.00010463,2]
[399735242,1766644229850,1000.0,0.0003287,120]
[399735257,1766644231603,-477.01906326,0.00010463,2]
[399735259,1766644231615,-338.32979985,0.00010463,2]
[399735261,1766644231628,-814.92377263,0.00010565,2]
[399735263,1766644231638,-72.3387151,0.00010619,2]
[399735265,1766644231648,-140.58,0.00010959,2]
[399735267,1766644231658,-457.81966354,0.00010976,2]
[399735269,1766644231668,-1200.0,0.00010984,2]
[399735271,1766644231678,-300.0,0.00010985,2]
[399735273,1766644231687,-300.0,0.00010985,2]
[399735275,1766644231696,-5793.946,0.00010986,2]
[399735277,1766644231705,-400.808,0.00010986,2]
[399735279,1766644231715,-3529.26795369,0.00011,2]
[399735281,1766644231724,-201.12732165,0.000111,2]
[399735283,1766644231733,-150.0,0.00011109,2]
[399735285,1766644231743,-500.0,0.0001111,2]
[399735287,1766644231752,-500.0,0.0001111,2]
[399735289,1766644231762,-500.0,0.0001111,2]
[399735291,1766644231771,-500.0,0.0001111,2]
[399735293,1766644231781,-500.0,0.0001111,2]
[399735294,1766644231791,-320.80490419,0.0001111,2]
[399735296,1766644231800,-2500.0,0.0001111,2]
[399735298,1766644231809,-3081.48314318,0.00011111,2]
[399735302,1766644231838,-418.26636555,0.00011111,2]
[399735303,1766644231849,-1388.91954942,0.00011111,2]